[Event "DFMMLV 2019"]
[Site "Braunfels"]
[Date "2019.06.21"]
[Round "3.56"]
[White "Metzner, Anita"]
[Black "Krotsch, Maxi"]
[Result "1-0"]
[ECO "D41"]
[WhiteElo "1524"]
[BlackElo "942"]
[Annotator "NA"]
[PlyCount "67"]
[EventDate "2019.06.20"]
[EventType "team-tourn"]
[EventCountry "GER"]
[SourceTitle "playchess.com"]
[Source "ChessBase"]
[SourceQuality "1"]
[WhiteTeam "Bayern 2"]
[BlackTeam "Wuerttemberg 2"]
[TimeControl "40/5400+30:1800+30"]

1. d4 {[%emt 0:00:00]} d5 {[%emt 0:00:00]} 2. c4 {[%emt 0:00:00]} e6 {[%emt 0:00:02]} 3. Nc3 {[%emt 0:00:49]} Nf6 {[%emt 0:00:31]} 4. Nf3 {[%emt 0:01:59]} c5 {[%emt 0:01:19]} 5. cxd5 {[%emt 0:02:53]} exd5 {[%emt 0:00:29]} 6. Bg5 {[%emt 0:05:19]} Be7 {[%emt 0:00:30]} 7. Bxf6 {[%emt 0:04:30]} Bxf6 {[%emt 0:00:46]} 8. dxc5 {[%emt 0:04:46]} d4 {[%emt 0:01:09]} 9. Ne4 {[%emt 0:02:59]} Qa5+ {[%emt 0:00:45]} 10. Qd2 {[%emt 0:07:06]} Qxd2+ {[%emt 0:01:24]} 11. Nfxd2 {[%emt 0:09:56]} Be5 {[%emt 0:00:58]} 12. Nc4 {[%emt 0:06:30]} Bc7 {[%emt 0:00:28]} 13. Ned6+ {[%emt 0:01:23]} Bxd6 {[%emt 0:00:32]} 14. Nxd6+ {[%emt 0:00:56]} Kd7 {[%emt 0:00:14]} 15. O-O-O {[%emt 0:12:13]} Nc6 {[%emt 0:00:22]} 16. Nf5 {[%emt 0:01:53]} Ke8 {[%emt 0:00:24]} 17. Nxd4 {[%emt 0:00:24]} Ne5 {[%emt 0:00:34]} 18. e3 {[%emt 0:01:54]} Be6 {[%emt 0:00:51]} 19. Nxe6 {[%emt 0:01:30]} fxe6 {[%emt 0:00:14]} 20. Bb5+ {[%emt 0:00:56]} Kf7 {[%emt 0:00:23]} 21. Rd4 {[%emt 0:03:54]} Rac8 {[%emt 0:01:22]} 22. b4 {[%emt 0:02:41]} a6 {[%emt 0:00:20]} 23. Be2 {[%emt 0:02:02]} Nc6 {[%emt 0:00:25]} 24. Rd7+ {[%emt 0:00:12]} Ke8 {[%emt 0:00:51]} 25. Rxb7 {[%emt 0:00:32]} a5 {[%emt 0:00:39]} 26. a3 {[%emt 0:01:47]} Nd8 {[%emt 0:00:26]} 27. Rxg7 {[%emt 0:01:45]} axb4 {[%emt 0:00:10]} 28. axb4 {[%emt 0:00:38]} Nc6 {[%emt 0:00:11]} 29. b5 {[%emt 0:01:45]} Nb4 {[%emt 0:00:18]} 30. c6 {[%emt 0:02:32]} Na2+ {[%emt 0:00:48]} 31. Kb2 {[%emt 0:00:23]} Nb4 {[%emt 0:00:43]} 32. Ra1 {[%emt 0:01:15]} Rf8 {[%emt 0:00:25]} 33. Raa7 {[%emt 0:00:37]} Rd8 {[%emt 0:02:30]} 34. Rae7# {[%emt 0:00:40]} 1-0

[Event "DFMMLV 2019"]
[Site "Braunfels"]
[Date "2019.06.21"]
[Round "4"]
[White "Nagel, Verena"]
[Black "Sokalskaja, Elena"]
[Result "0-1"]
[ECO "A48"]
[WhiteElo "2029"]
[BlackElo "2014"]
[Annotator "NA"]
[PlyCount "78"]
[EventDate "2019.06.20"]
[EventType "team-tourn"]
[EventCountry "GER"]
[SourceTitle "playchess.com"]
[Source "ChessBase"]
[SourceQuality "1"]
[WhiteTeam "Sachsen"]
[BlackTeam "NRW"]
[TimeControl "40/5400+30:1800+30"]

1. d4 {[%emt 0:00:00]} Nf6 {[%emt 0:00:00]} 2. Nf3 {[%emt 0:00:00]} g6 {[%emt 0:00:00]} 3. e3 {[%emt 0:00:00]} Bg7 {[%emt 0:00:00]} 4. b3 {[%emt 0:00:09]} c5 {[%emt 0:00:00]} 5. Bd3 {[%emt 0:00:19]} Nc6 {[%emt 0:00:11]} 6. Bb2 {[%emt 0:00:17]} O-O {[%emt 0:00:07]} 7. O-O {[%emt 0:00:45]} cxd4 {[%emt 0:06:11]} 8. exd4 {[%emt 0:00:18]} d5 {[%emt 0:01:29]} 9. Nbd2 {[%emt 0:00:14]} Nb4 {[%emt 0:01:29]} 10. Be2 {[%emt 0:00:41]} Bf5 {[%emt 0:00:08]} 11. c3 {[%emt 0:01:34]} Nd3 {[%emt 0:04:03]} 12. Bxd3 {[%emt 0:01:49]} Bxd3 {[%emt 0:00:02]} 13. Re1 {[%emt 0:00:07]} Rc8 {[%emt 0:03:08]} 14. Ne5 {[%emt 0:02:35]} Bf5 {[%emt 0:04:29]} 15. g4 {[%emt 0:06:58]} Be6 {[%emt 0:00:21]} 16. g5 {[%emt 0:03:55]} Nh5 {[%emt 0:00:49]} 17. Qf3 {[%emt 0:01:33]} b5 {[%emt 0:07:51]} 18. Ba3 {[%emt 0:03:25]} Rc7 {[%emt 0:03:29]} 19. Bc5 {[%emt 0:02:17]} Qc8 {[%emt 0:00:14]} 20. b4 {[%emt 0:00:22]} f6 {[%emt 0:04:36]} 21. gxf6 {[%emt 0:02:33]} Rxf6 {[%emt 0:03:04]} 22. Qd3 {[%emt 0:03:01]} Nf4 {[%emt 0:00:23]} 23. Qxb5 {[%emt 0:00:35]} Nh3+ {[%emt 0:00:03]} 24. Kh1 {[%emt 0:00:14]} Nxf2+ {[%emt 0:10:26]} 25. Kg1 {[%emt 0:00:07]} Nh3+ {[%emt 0:05:35]} 26. Kh1 {[%emt 0:02:11]} Nf2+ {[%emt 0:04:11]} 27. Kg1 {[%emt 0:00:08]} Bh6 {[%emt 0:09:58]} 28. Nf1 {[%emt 0:12:39]} Nh3+ {[%emt 0:03:02]} 29. Kh1 {[%emt 0:00:07]} Bf5 {[%emt 0:01:30]} 30. Ng3 {[%emt 0:08:31]} Be4+ {[%emt 0:01:42]} 31. Nxe4 {[%emt 0:04:15]} dxe4 {[%emt 0:00:04]} 32. Rf1 {[%emt 0:01:37]} Nf2+ {[%emt 0:02:27]} 33. Rxf2 {[%emt 0:06:44]} Rxf2 {[%emt 0:00:03]} 34. d5 {[%emt 0:03:28]} e3 {[%emt 0:00:47]} 35. Nd3 {[%emt 0:05:16]} Qh3 {[%emt 0:09:27]} 36. Nxf2 {[%emt 0:00:11]} Qf3+ {[%emt 0:00:03]} 37. Kg1 {[%emt 0:00:10]} Qxf2+ {[%emt 0:00:06]} 38. Kh1 {[%emt 0:00:04]} Bf4 {[%emt 0:00:12]} 39. Qb8+ {[%emt 0:01:58]} Kf7 {[%emt 0:00:09]} 0-1

[Event "DFMMLV 2019"]
[Site "Braunfels"]
[Date "2019.06.21"]
[Round "4"]
[White "Schmidt, Andrea"]
[Black "Just, Anita"]
[Result "1/2-1/2"]
[ECO "C01"]
[WhiteElo "2006"]
[BlackElo "1866"]
[Annotator "NA"]
[PlyCount "63"]
[EventDate "2019.06.20"]
[EventType "team-tourn"]
[EventCountry "GER"]
[SourceTitle "playchess.com"]
[Source "ChessBase"]
[SourceQuality "1"]
[WhiteTeam "NRW"]
[BlackTeam "Sachsen"]
[TimeControl "40/5400+30:1800+30"]

1. e4 {[%emt 0:00:00]} e6 {[%emt 0:00:00]} 2. d4 {[%emt 0:00:00]} d5 {[%emt 0:00:00]} 3. exd5 {[%emt 0:00:00]} exd5 {[%emt 0:00:00]} 4. Nf3 {[%emt 0:01:59]} Nc6 {[%emt 0:01:04]} 5. Bb5 {[%emt 0:04:07]} Bd6 {[%emt 0:02:30]} 6. c3 {[%emt 0:06:01]} Nge7 {[%emt 0:02:54]} 7. Bg5 {[%emt 0:02:45]} f6 {[%emt 0:03:20]} 8. Bh4 {[%emt 0:02:18]} Bg4 {[%emt 0:03:00]} 9. Bg3 {[%emt 0:01:01]} Qd7 {[%emt 0:03:32]} 10. Bxd6 {[%emt 0:05:02]} Qxd6 {[%emt 0:00:51]} 11. Nbd2 {[%emt 0:00:19]} O-O-O {[%emt 0:05:05]} 12. Qa4 {[%emt 0:01:42]} Qe6+ {[%emt 0:08:00]} 13. Kd1 {[%emt 0:00:45]} Kb8 {[%emt 0:01:26]} 14. Re1 {[%emt 0:02:20]} Bxf3+ {[%emt 0:03:10]} 15. Nxf3 {[%emt 0:00:22]} Qg4 {[%emt 0:02:48]} 16. Bf1 {[%emt 0:03:56]} Nc8 {[%emt 0:04:50]} 17. h3 Qf5 18. Qc2 {[%emt 0:01:35]} Qxc2+ {[%emt 0:04:20]} 19. Kxc2 {[%emt 0:00:06]} Nd6 {[%emt 0:00:29]} 20. Bd3 {[%emt 0:01:21]} Rde8 {[%emt 0:06:18]} 21. Nd2 {[%emt 0:05:22]} f5 {[%emt 0:05:19]} 22. g3 {[%emt 0:05:43]} g6 {[%emt 0:02:14]} 23. b4 {[%emt 0:04:01]} Kc8 {[%emt 0:03:47]} 24. Nf3 {[%emt 0:06:06]} Kd8 {[%emt 0:09:18]} 25. b5 {[%emt 0:02:48]} Na5 {[%emt 0:00:48]} 26. Ne5 {[%emt 0:01:43]} Re7 {[%emt 0:02:16]} 27. f4 {[%emt 0:05:48]} Rhe8 {[%emt 0:02:14]} 28. a4 {[%emt 0:02:33]} Ndc4 {[%emt 0:09:52]} 29. Bxc4 {[%emt 0:06:43]} Nxc4 {[%emt 0:00:31]} 30. a5 {[%emt 0:00:32]} Kc8 {[%emt 0:07:29]} 31. Reb1 {[%emt 0:07:01]} Re6 {[%emt 0:01:14]} 32. h4 1/2-1/2

[Event "DFMMLV 2019"]
[Site "Braunfels"]
[Date "2019.06.22"]
[Round "4.1"]
[White "Li, Zhuoling"]
[Black "Hess, Olena"]
[Result "1/2-1/2"]
[ECO "C41"]
[WhiteElo "2140"]
[BlackElo "2097"]
[Annotator "NA"]
[PlyCount "81"]
[EventDate "2019.06.20"]
[EventType "team-tourn"]
[EventCountry "GER"]
[SourceTitle "playchess.com"]
[Source "ChessBase"]
[SourceQuality "1"]
[WhiteTeam "Wuerttemberg 1"]
[BlackTeam "NRW"]
[TimeControl "40/5400+30:1800+30"]

1. e4 {[%emt 0:00:00]} d6 {[%emt 0:00:00]} 2. d4 {[%emt 0:00:00]} Nf6 {[%emt 0:00:00]} 3. Nc3 {[%emt 0:00:00]} e5 {[%emt 0:00:00]} 4. Nf3 {[%emt 0:00:00]} Nbd7 {[%emt 0:00:12]} 5. Bc4 {[%emt 0:00:00]} Be7 {[%emt 0:00:13]} 6. O-O {[%emt 0:00:06]} O-O {[%emt 0:00:13]} 7. a4 {[%emt 0:00:15]} c6 {[%emt 0:00:07]} 8. Re1 {[%emt 0:00:22]} Qc7 {[%emt 0:00:06]} 9. h3 {[%emt 0:01:42]} b6 {[%emt 0:00:25]} 10. d5 {[%emt 0:16:54]} Bb7 {[%emt 0:03:29]} 11. b3 {[%emt 0:15:22]} cxd5 {[%emt 0:10:08]} 12. exd5 {[%emt 0:02:00]} Nc5 {[%emt 0:06:01]} 13. Ba3 {[%emt 0:07:54]} Kh8 {[%emt 0:05:24]} 14. Qe2 {[%emt 0:09:34]} Rae8 {[%emt 0:19:01]} 15. Bc1 {[%emt 0:14:25]} Bc8 {[%emt 0:04:15]} 16. b4 {[%emt 0:08:26]} Ncd7 {[%emt 0:01:32]} 17. Bd2 {[%emt 0:03:04]} Bb7 {[%emt 0:04:02]} 18. a5 {[%emt 0:01:53]} bxa5 {[%emt 0:12:11]} 19. Rxa5 {[%emt 0:00:06]} Nb6 {[%emt 0:01:30]} 20. Bb3 {[%emt 0:00:07]} a6 {[%emt 0:01:50]} 21. Rea1 {[%emt 0:00:41]} Rc8 {[%emt 0:01:01]} 22. b5 {[%emt 0:01:27]} axb5 {[%emt 0:03:15]} 23. Nxb5 {[%emt 0:00:03]} Qd8 {[%emt 0:02:31]} 24. c4 {[%emt 0:00:02]} Nfd7 {[%emt 0:03:02]} 25. Be3 {[%emt 0:05:25]} Nc5 {[%emt 0:00:11]} 26. Bc2 {[%emt 0:00:42]} Nbd7 {[%emt 0:01:41]} 27. Nd2 {[%emt 0:02:05]} f5 {[%emt 0:12:12]} 28. f3 {[%emt 0:00:02]} Ra8 {[%emt 0:01:12]} 29. Rxa8 {[%emt 0:00:43]} Bxa8 {[%emt 0:00:02]} 30. Nb3 {[%emt 0:00:58]} Nxb3 {[%emt 0:04:50]} 31. Bxb3 {[%emt 0:00:01]} Bb7 {[%emt 0:00:51]} 32. Bc2 {[%emt 0:03:35]} g6 {[%emt 0:01:51]} 33. Qd2 {[%emt 0:01:09]} Nf6 {[%emt 0:01:22]} 34. Qf2 {[%emt 0:02:14]} Qd7 {[%emt 0:00:36]} 35. Nc3 {[%emt 0:01:10]} Ra8 {[%emt 0:00:12]} 36. Rxa8+ Bxa8 37. Ba4 {[%emt 0:01:19]} Qc8 {[%emt 0:00:24]} 38. Qa2 {[%emt 0:00:38]} Bb7 {[%emt 0:01:11]} 39. Qb3 {[%emt 0:02:16]} Kg7 {[%emt 0:00:14]} 40. Qb4 {[%emt 0:01:34]} h6 {[%emt 0:01:16]} 41. Nb5 {[%emt 0:31:39]} 1/2-1/2

[Event "DFMMLV 2019"]
[Site "Braunfels"]
[Date "2019.06.22"]
[Round "4.2"]
[White "Plass, Mariana-Camelia"]
[Black "Meier, Annemarie"]
[Result "0-1"]
[ECO "E15"]
[WhiteElo "2042"]
[BlackElo "2267"]
[Annotator "NA"]
[PlyCount "60"]
[EventDate "2019.06.20"]
[EventType "team-tourn"]
[EventCountry "GER"]
[SourceTitle "playchess.com"]
[Source "ChessBase"]
[SourceQuality "1"]
[WhiteTeam "NRW"]
[BlackTeam "Wuerttemberg 1"]
[TimeControl "40/5400+30:1800+30"]

1. d4 {[%emt 0:00:00]} Nf6 {[%emt 0:00:04]} 2. c4 {[%emt 0:00:00]} e6 {[%emt 0:00:42]} 3. Nf3 {[%emt 0:00:30]} b6 {[%emt 0:00:29]} 4. g3 {[%emt 0:00:29]} Ba6 {[%emt 0:00:21]} 5. Qc2 {[%emt 0:03:29]} Bb4+ {[%emt 0:03:42]} 6. Bd2 {[%emt 0:00:59]} Be7 {[%emt 0:00:17]} 7. Bg2 {[%emt 0:01:34]} c6 {[%emt 0:01:08]} 8. Ne5 {[%emt 0:09:09]} O-O {[%emt 0:03:27]} 9. O-O {[%emt 0:08:40]} Qc8 {[%emt 0:04:39]} 10. Bf4 {[%emt 0:03:52]} d6 {[%emt 0:00:57]} 11. Nd3 {[%emt 0:01:04]} d5 {[%emt 0:04:06]} 12. Nd2 {[%emt 0:05:20]} Rd8 {[%emt 0:03:56]} 13. c5 {[%emt 0:09:38]} bxc5 {[%emt 0:14:33]} 14. dxc5 {[%emt 0:01:08]} Nbd7 {[%emt 0:00:21]} 15. b4 {[%emt 0:08:16]} Nh5 {[%emt 0:01:06]} 16. e4 {[%emt 0:05:46]} Nxf4 {[%emt 0:07:35]} 17. gxf4 {[%emt 0:03:25]} Nf6 {[%emt 0:07:55]} 18. e5 {[%emt 0:10:41]} Nh5 {[%emt 0:01:37]} 19. f5 {[%emt 0:13:11]} exf5 {[%emt 0:00:56]} 20. f4 {[%emt 0:00:38]} g6 {[%emt 0:00:22]} 21. Nb3 {[%emt 0:00:36]} Ng7 {[%emt 0:06:13]} 22. Rf3 {[%emt 0:02:00]} Bxd3 {[%emt 0:00:31]} 23. Qxd3 {[%emt 0:00:29]} Ne6 {[%emt 0:00:37]} 24. Nd4 {[%emt 0:00:56]} a5 {[%emt 0:01:13]} 25. Nxe6 {[%emt 0:03:56]} fxe6 {[%emt 0:00:25]} 26. Qd4 {[%emt 0:00:43]} axb4 {[%emt 0:04:13]} 27. Qxb4 {[%emt 0:00:08]} Qb8 {[%emt 0:01:24]} 28. Qd4 {[%emt 0:00:44]} Ra5 {[%emt 0:01:07]} 29. Rc3 {[%emt 0:00:28]} Qb2 {[%emt 0:00:48]} 30. Rd1 {[%emt 0:03:54]} Rxa2 {[%emt 0:02:42]} 0-1

[Event "DFMMLV 2019"]
[Site "Braunfels"]
[Date "2019.06.22"]
[Round "4.3"]
[White "Mira, Helene"]
[Black "Sokalska, Viktorija"]
[Result "1-0"]
[ECO "D90"]
[WhiteElo "2029"]
[BlackElo "1961"]
[Annotator "NA"]
[PlyCount "125"]
[EventDate "2019.06.20"]
[EventType "team-tourn"]
[EventCountry "GER"]
[SourceTitle "playchess.com"]
[Source "ChessBase"]
[SourceQuality "1"]
[WhiteTeam "Wuerttemberg 1"]
[BlackTeam "NRW"]
[TimeControl "40/5400+30:1800+30"]

1. Nf3 {[%emt 0:00:00]} Nf6 {[%emt 0:00:00]} 2. d4 {[%emt 0:00:39]} g6 {[%emt 0:00:04]} 3. c4 {[%emt 0:01:04]} Bg7 {[%emt 0:00:20]} 4. Nc3 {[%emt 0:00:05]} d5 {[%emt 0:00:08]} 5. Qa4+ {[%emt 0:00:04]} c6 {[%emt 0:07:13]} 6. cxd5 {[%emt 0:00:08]} Nxd5 {[%emt 0:00:14]} 7. e4 {[%emt 0:00:07]} Nxc3 {[%emt 0:01:53]} 8. bxc3 {[%emt 0:00:02]} O-O {[%emt 0:00:27]} 9. Qa3 {[%emt 0:00:58]} Nd7 {[%emt 0:04:28]} 10. Bg5 {[%emt 0:03:27]} Re8 {[%emt 0:08:39]} 11. Bc4 {[%emt 0:09:02]} h6 {[%emt 0:02:28]} 12. Qb3 {[%emt 0:04:05]} Rf8 {[%emt 0:00:45]} 13. Be3 {[%emt 0:00:18]} b5 {[%emt 0:00:45]} 14. Be2 {[%emt 0:00:21]} Nf6 {[%emt 0:01:53]} 15. e5 {[%emt 0:01:32]} Nd5 {[%emt 0:02:42]} 16. Bd2 {[%emt 0:00:14]} Be6 {[%emt 0:02:57]} 17. O-O {[%emt 0:01:56]} Nf4 {[%emt 0:09:10]} 18. Qd1 {[%emt 0:00:06]} Nxe2+ {[%emt 0:00:06]} 19. Qxe2 {[%emt 0:00:02]} Bc4 {[%emt 0:00:04]} 20. Qe4 {[%emt 0:00:12]} Bxf1 {[%emt 0:00:52]} 21. Rxf1 {[%emt 0:00:02]} e6 {[%emt 0:25:44]} 22. Qxc6 {[%emt 0:04:57]} Qd5 {[%emt 0:01:52]} 23. Qa6 {[%emt 0:00:34]} Rfc8 {[%emt 0:01:30]} 24. Rb1 {[%emt 0:00:24]} Rcb8 {[%emt 0:08:52]} 25. Qa3 {[%emt 0:01:04]} Bf8 {[%emt 0:01:44]} 26. Qb2 {[%emt 0:00:10]} a5 {[%emt 0:03:00]} 27. a3 {[%emt 0:00:58]} Kh7 {[%emt 0:01:25]} 28. h3 {[%emt 0:03:55]} Rb7 {[%emt 0:02:17]} 29. Nh2 {[%emt 0:00:15]} Be7 {[%emt 0:03:05]} 30. Ng4 {[%emt 0:00:18]} h5 {[%emt 0:01:20]} 31. Ne3 {[%emt 0:00:21]} Qc6 {[%emt 0:00:52]} 32. c4 {[%emt 0:02:23]} Rab8 {[%emt 0:01:49]} 33. c5 {[%emt 0:00:15]} b4 {[%emt 0:00:59]} 34. axb4 {[%emt 0:00:12]} axb4 {[%emt 0:00:03]} 35. Nc4 {[%emt 0:01:04]} Qe4 {[%emt 0:03:11]} 36. Re1 {[%emt 0:00:46]} Qd3 {[%emt 0:00:59]} 37. Nd6 {[%emt 0:04:40]} Bxd6 {[%emt 0:00:31]} 38. exd6 {[%emt 0:00:01]} Qb5 {[%emt 0:01:38]} 39. Qb3 {[%emt 0:00:32]} Ra7 {[%emt 0:00:47]} 40. Rb1 {[%emt 0:01:05]} Qe2 {[%emt 0:01:53]} 41. Qe3 {[%emt 0:33:52]} Qxe3 {[%emt 0:02:31]} 42. fxe3 {[%emt 0:00:00]} b3 {[%emt 0:08:08]} 43. Bc3 {[%emt 0:00:00]} Ra6 {[%emt 0:03:38]} 44. e4 {[%emt 0:00:00]} Rc6 {[%emt 0:00:54]} 45. Kf2 {[%emt 0:00:00]} e5 {[%emt 0:04:49]} 46. Ke3 {[%emt 0:00:00]} f6 {[%emt 0:02:00]} 47. Kd3 {[%emt 0:00:00]} f5 {[%emt 0:05:01]} 48. exf5 {[%emt 0:00:00]} gxf5 {[%emt 0:00:24]} 49. Kc4 {[%emt 0:00:00]} exd4 {[%emt 0:04:02]} 50. Bxd4 {[%emt 0:00:00]} Ra6 {[%emt 0:00:59]} 51. Kd5 {[%emt 0:00:00]} Kg6 {[%emt 0:01:12]} 52. d7 {[%emt 0:00:00]} Kf7 {[%emt 0:00:23]} 53. Rxb3 {[%emt 0:00:00]} Rd8 {[%emt 0:00:54]} 54. c6 {[%emt 0:00:00]} Ke7 {[%emt 0:00:59]} 55. Bc5+ {[%emt 0:00:00]} Kf6 {[%emt 0:00:11]} 56. Kd6 {[%emt 0:00:00]} Ra2 {[%emt 0:01:09]} 57. Bd4+ {[%emt 0:00:00]} Kf7 {[%emt 0:00:08]} 58. c7 {[%emt 0:00:00]} Ra6+ {[%emt 0:01:23]} 59. Rb6 {[%emt 0:00:00]} Raa8 {[%emt 0:00:13]} 60. cxd8=Q {[%emt 0:00:00]} Rxd8 {[%emt 0:00:02]} 61. Kc7 {[%emt 0:00:00]} f4 {[%emt 0:01:04]} 62. Kxd8 {[%emt 0:00:00]} f3 {[%emt 0:00:07]} 63. Rb4 {Ke8+} 1-0

[Event "DFMMLV 2019"]
[Site "Braunfels"]
[Date "2019.06.22"]
[Round "4.4"]
[White "Sokalskaja, Elena"]
[Black "Gheng, Simona"]
[Result "0-1"]
[ECO "D02"]
[WhiteElo "2014"]
[BlackElo "1991"]
[Annotator "NA"]
[PlyCount "106"]
[EventDate "2019.06.20"]
[EventType "team-tourn"]
[EventCountry "GER"]
[SourceTitle "playchess.com"]
[Source "ChessBase"]
[SourceQuality "1"]
[WhiteTeam "NRW"]
[BlackTeam "Wuerttemberg 1"]
[TimeControl "40/5400+30:1800+30"]

1. d4 {[%emt 0:00:00]} d5 {[%emt 0:01:12]} 2. Nf3 {[%emt 0:00:00]} Nf6 {[%emt 0:00:28]} 3. g3 {[%emt 0:00:00]} e6 {[%emt 0:00:34]} 4. Bg2 {[%emt 0:00:00]} b6 {[%emt 0:00:17]} 5. c4 {[%emt 0:00:00]} Bb7 {[%emt 0:00:06]} 6. O-O {[%emt 0:00:09]} Nbd7 {[%emt 0:00:25]} 7. Nc3 {[%emt 0:02:10]} Be7 {[%emt 0:00:31]} 8. Qc2 {[%emt 0:09:28]} O-O {[%emt 0:04:20]} 9. Rd1 {[%emt 0:00:43]} c5 {[%emt 0:02:16]} 10. dxc5 {[%emt 0:00:21]} bxc5 {[%emt 0:04:31]} 11. cxd5 {[%emt 0:02:18]} exd5 {[%emt 0:01:09]} 12. Nh4 {[%emt 0:10:05]} Nb6 {[%emt 0:08:12]} 13. Nf5 {[%emt 0:00:23]} Qd7 {[%emt 0:04:51]} 14. Bg5 {[%emt 0:24:18]} Rad8 {[%emt 0:09:58]} 15. e4 {[%emt 0:08:10]} d4 {[%emt 0:07:55]} 16. e5 {[%emt 0:03:47]} Nfd5 {[%emt 0:05:29]} 17. Nxe7+ {[%emt 0:03:48]} Nxe7 {[%emt 0:00:23]} 18. Ne4 {[%emt 0:01:12]} Bxe4 {[%emt 0:02:12]} 19. Bxe4 {[%emt 0:00:47]} h6 {[%emt 0:00:24]} 20. Bd2 {[%emt 0:05:02]} c4 {[%emt 0:05:38]} 21. Ba5 {[%emt 0:01:44]} d3 {[%emt 0:01:40]} 22. Qd2 {[%emt 0:02:36]} Qd4 {[%emt 0:02:03]} 23. Re1 {[%emt 0:03:10]} Ned5 {[%emt 0:11:39]} 24. Bxd5 {[%emt 0:00:38]} Qxd5 {[%emt 0:00:22]} 25. b3 {[%emt 0:05:06]} Rc8 {[%emt 0:03:35]} 26. Rac1 {[%emt 0:01:55]} cxb3 {[%emt 0:01:00]} 27. axb3 {[%emt 0:02:32]} Qxb3 {[%emt 0:01:50]} 28. Rb1 {[%emt 0:12:21]} Qd5 {[%emt 0:02:26]} 29. Bxb6 {[%emt 0:00:14]} axb6 {[%emt 0:00:05]} 30. Red1 {[%emt 0:00:12]} Rfd8 {[%emt 0:00:57]} 31. Qf4 {[%emt 0:00:22]} b5 {[%emt 0:01:18]} 32. Qf5 {[%emt 0:00:23]} Rc5 {[%emt 0:01:04]} 33. h4 {[%emt 0:00:29]} Qxe5 {[%emt 0:00:51]} 34. Qxe5 {[%emt 0:00:13]} Rxe5 {[%emt 0:00:05]} 35. Kg2 {[%emt 0:00:10]} f5 {[%emt 0:02:21]} 36. Kf3 {[%emt 0:00:04]} Rd4 {[%emt 0:00:19]} 37. Rb3 {[%emt 0:00:15]} Red5 {[%emt 0:00:22]} 38. Ke3 {[%emt 0:00:08]} d2 {[%emt 0:01:18]} 39. f3 {[%emt 0:00:07]} b4 {[%emt 0:01:47]} 40. h5 {[%emt 0:00:29]} Kf7 {[%emt 0:00:21]} 41. Ke2 {[%emt 0:30:32]} Kf6 {[%emt 0:30:37]} 42. f4 {[%emt 0:00:35]} Ke6 {[%emt 0:00:57]} 43. Rb2 {[%emt 0:01:36]} Kd6 {[%emt 0:01:55]} 44. Rc2 {[%emt 0:01:27]} b3 {[%emt 0:02:51]} 45. Rc8 {[%emt 0:00:10]} Re4+ {[%emt 0:03:53]} 46. Kf2 {[%emt 0:01:57]} Rb4 {[%emt 0:01:53]} 47. Rd8+ {[%emt 0:00:07]} Ke6 {[%emt 0:00:06]} 48. Rxd5 {[%emt 0:00:05]} Kxd5 {[%emt 0:00:03]} 49. Ke3 {[%emt 0:00:00]} Re4+ {[%emt 0:00:00]} 50. Kd3 {[%emt 0:00:00]} Rd4+ {[%emt 0:00:00]} 51. Kc3 {[%emt 0:00:00]} Ke4 {[%emt 0:00:00]} 52. Kxb3 {[%emt 0:00:00]} Ke3 {[%emt 0:00:00]} 53. Kc3 {[%emt 0:00:00]} Rd7 {[%emt 0:00:00]} 0-1

[Event "DFMMLV 2019"]
[Site "Braunfels"]
[Date "2019.06.22"]
[Round "4.5"]
[White "Zeller, Elisa"]
[Black "Schmidt, Andrea"]
[Result "1/2-1/2"]
[ECO "C03"]
[WhiteElo "1953"]
[BlackElo "2006"]
[Annotator "NA"]
[PlyCount "31"]
[EventDate "2019.06.20"]
[EventType "team-tourn"]
[EventCountry "GER"]
[SourceTitle "playchess.com"]
[Source "ChessBase"]
[SourceQuality "1"]
[WhiteTeam "Wuerttemberg 1"]
[BlackTeam "NRW"]
[TimeControl "40/5400+30:1800+30"]

1. e4 {[%emt 0:00:00]} e6 {[%emt 0:00:00]} 2. d4 {[%emt 0:00:00]} d5 {[%emt 0:00:00]} 3. Nd2 {[%emt 0:00:02]} dxe4 {[%emt 0:00:24]} 4. Nxe4 {[%emt 0:00:08]} Bd7 {[%emt 0:00:03]} 5. Ne2 {[%emt 0:00:31]} Bc6 {[%emt 0:01:43]} 6. N2g3 {[%emt 0:00:15]} Nd7 {[%emt 0:04:16]} 7. Bg5 {[%emt 0:06:13]} Be7 {[%emt 0:14:13]} 8. Qd2 {[%emt 0:04:51]} Bxe4 {[%emt 0:02:26]} 9. Nxe4 {[%emt 0:00:14]} Ngf6 {[%emt 0:01:18]} 10. Nxf6+ {[%emt 0:08:14]} Nxf6 {[%emt 0:01:55]} 11. Bxf6 {[%emt 0:01:24]} Bxf6 {[%emt 0:00:10]} 12. c3 {[%emt 0:00:21]} c6 {[%emt 0:02:00]} 13. Bc4 {[%emt 0:04:50]} O-O {[%emt 0:02:12]} 14. Rd1 {[%emt 0:00:21]} Qc7 {[%emt 0:04:30]} 15. O-O {[%emt 0:00:10]} Rad8 {[%emt 0:00:38]} 16. Qe2 {[%emt 0:03:09]} 1/2-1/2